fUST/lending_fUST_20260521
["ID","MTS","AMOUNT","RATE_DAILY","PERIOD"]
[422773355,1779376240000,-500.0,8.219e-05,2]
[422773356,1779376240000,-500.0,8.219e-05,2]
[422773372,1779376241000,-5120.87427199,8.219e-05,2]
[422773373,1779376241000,-462.48,8.219e-05,2]
[422773371,1779376241000,-569.75572801,8.219e-05,2]
[422773376,1779376241000,-457.61158738,8.219e-05,2]
[422773374,1779376241000,-1099.49,8.219e-05,2]
[422773378,1779376241000,-227.49903833,8.219e-05,2]
[422773379,1779376241000,-500.0,8.219e-05,2]
[422773380,1779376241000,-383.7577576,8.219e-05,2]
[422773377,1779376241000,-272.50096167,8.219e-05,2]
[422773375,1779376241000,-500.0,8.219e-05,2]
[422773405,1779376243000,-316.0922424,8.219e-05,2]
[422773399,1779376243000,-116.2422424,8.219e-05,2]
[422773403,1779376243000,-500.0,8.219e-05,2]
[422773401,1779376243000,-500.0,8.219e-05,2]
[422773406,1779376243000,-249.3577576,8.219e-05,2]
[422773402,1779376243000,-500.0,8.219e-05,2]
[422773404,1779376243000,-543.7577576,8.219e-05,2]
[422773408,1779376243000,-192.3577576,8.219e-05,2]
[422773409,1779376243000,-274.508,8.219e-05,2]
[422773415,1779376243000,-245.67483754,8.219e-05,2]
[422773410,1779376243000,-33.1342424,8.219e-05,2]
[422773411,1779376243000,-500.0,8.219e-05,2]
[422773412,1779376243000,-500.0,8.219e-05,2]
[422773414,1779376243000,-500.0,8.219e-05,2]
[422773413,1779376243000,-500.0,8.219e-05,2]
[422773407,1779376243000,-250.6422424,8.219e-05,2]
[422773419,1779376244000,-500.0,8.219e-05,2]
[422773420,1779376244000,-500.0,8.219e-05,2]
[422773417,1779376244000,-650.87,8.219e-05,2]
[422773416,1779376244000,-290.86928639,8.219e-05,2]
[422773422,1779376244000,-500.0,8.219e-05,2]
[422773434,1779376244000,-495.33349622,8.493e-05,2]
[422773432,1779376244000,-520.442,8.493e-05,2]
[422773433,1779376244000,-500.0,8.493e-05,2]
[422773418,1779376244000,-500.0,8.219e-05,2]
[422773421,1779376244000,-832.14,8.219e-05,2]
[422773423,1779376244000,-500.0,8.219e-05,2]
[422773428,1779376244000,-151.5,8.452e-05,2]
[422773426,1779376244000,-1215.670453,8.394e-05,2]
[422773431,1779376244000,-477.96,8.493e-05,2]
[422773429,1779376244000,-173.38601296,8.452e-05,2]
[422773427,1779376244000,-268.36725465,8.423e-05,5]
[422773425,1779376244000,-500.0,8.219e-05,2]
[422773424,1779376244000,-500.0,8.219e-05,2]
[422773430,1779376244000,-734.0425,8.493e-05,2]
[422773455,1779376246000,-5690.63,8.493e-05,2]
[422773459,1779376246000,-26.64418784,8.493e-05,2]
[422773454,1779376246000,-500.0,8.493e-05,2]
[422773450,1779376246000,-907.52,8.493e-05,2]
[422773451,1779376246000,-550.65,8.493e-05,2]
[422773457,1779376246000,-500.0,8.493e-05,2]
[422773458,1779376246000,-500.0,8.493e-05,2]
[422773456,1779376246000,-1099.49,8.493e-05,2]
[422773449,1779376246000,-500.0,8.493e-05,2]
[422773447,1779376246000,-500.0,8.493e-05,2]
[422773446,1779376246000,-411.58,8.493e-05,2]
[422773445,1779376246000,-440.07650378,8.493e-05,2]
[422773443,1779376246000,-500.0,8.219e-05,2]
[422773444,1779376246000,-500.0,8.219e-05,2]
[422773453,1779376246000,-500.0,8.493e-05,2]
[422773448,1779376246000,-500.0,8.493e-05,2]
[422773452,1779376246000,-500.0,8.493e-05,2]
[422773462,1779376246000,-500.0,8.493e-05,2]
[422773470,1779376246000,-500.0,8.493e-05,2]
[422773461,1779376246000,-500.0,8.493e-05,2]
[422773478,1779376246000,-172.01736908,8.493e-05,2]
[422773473,1779376246000,-500.0,8.493e-05,2]
[422773475,1779376246000,-500.0,8.493e-05,2]
[422773476,1779376246000,-832.14,8.493e-05,2]
[422773474,1779376246000,-500.0,8.493e-05,2]
[422773469,1779376246000,-500.0,8.493e-05,2]
[422773468,1779376246000,-500.0,8.493e-05,2]
[422773477,1779376246000,-500.0,8.493e-05,2]
[422773467,1779376246000,-500.0,8.493e-05,2]
[422773463,1779376246000,-103.64418784,8.493e-05,2]
[422773466,1779376246000,-500.0,8.493e-05,2]
[422773465,1779376246000,-859.85,8.493e-05,2]
[422773460,1779376246000,-473.35581216,8.493e-05,2]
[422773472,1779376246000,-650.87,8.493e-05,2]
[422773471,1779376246000,-500.0,8.493e-05,2]
[422773464,1779376246000,-396.35581216,8.493e-05,2]
[422773492,1779376247000,-160.0,8.707e-05,2]
[422773498,1779376247000,-734.0425,8.767e-05,2]
[422773491,1779376247000,-605.35726166,8.7e-05,2]
[422773489,1779376247000,-243.5909828,8.676e-05,2]
[422773488,1779376247000,-578.20924308,8.621e-05,2]
[422773490,1779376247000,-300.0,8.687e-05,2]
[422773487,1779376247000,-185.0,8.619e-05,2]
[422773480,1779376247000,-500.0,8.498e-05,2]
[422773479,1779376247000,-500.0,8.493e-05,2]
[422773481,1779376247000,-424.57566556,8.498e-05,2]
[422773483,1779376247000,-537.6845,8.511e-05,2]
[422773486,1779376247000,-742.0,8.619e-05,2]
[422773485,1779376247000,-443.0,8.619e-05,2]
[422773484,1779376247000,-557.5788265,8.566e-05,2]
[422773482,1779376247000,-500.0,8.511e-05,2]
[422773497,1779376247000,-720.0,8.75e-05,2]
[422773494,1779376247000,-160.0,8.707e-05,2]
[422773495,1779376247000,-160.0,8.707e-05,2]
[422773493,1779376247000,-161.7158655,8.707e-05,2]
[422773506,1779376247000,-550.65,8.767e-05,2]
[422773504,1779376247000,-500.0,8.767e-05,2]
[422773502,1779376247000,-500.0,8.767e-05,2]
[422773503,1779376247000,-500.0,8.767e-05,2]
[422773510,1779376247000,-2136.385947,8.767e-05,2]
[422773505,1779376247000,-907.52,8.767e-05,2]
[422773508,1779376247000,-500.0,8.767e-05,2]
[422773507,1779376247000,-500.0,8.767e-05,2]
[422773500,1779376247000,-500.0,8.767e-05,2]
[422773511,1779376247000,-2641.54903709,8.767e-05,2]
[422773501,1779376247000,-935.41,8.767e-05,2]
[422773499,1779376247000,-520.442,8.767e-05,2]
[422773496,1779376247000,-1215.670453,8.719e-05,2]
[422773509,1779376247000,-500.0,8.767e-05,2]
[422773512,1779376574000,164.617924,3.713e-05,2]
[422773619,1779377432000,-300.0,7.539e-05,2]
[422773615,1779377432000,-300.0,7.539e-05,2]
[422773617,1779377432000,-300.0,7.539e-05,2]
[422773627,1779377432000,-600.0,7.751e-05,2]
[422773629,1779377432000,-774.526377,7.782e-05,2]
[422773630,1779377432000,-220.21779177,7.787e-05,2]
[422773632,1779377432000,-4958.79734225,7.792e-05,2]
[422773621,1779377432000,-300.0,7.539e-05,2]
[422773643,1779377432000,-151.0,8.139e-05,2]
[422773625,1779377432000,-4646.94556509,7.692e-05,2]
[422773634,1779377432000,-5268.33393501,7.892e-05,2]
[422773636,1779377432000,-774.526377,8.084e-05,2]
[422773638,1779377432000,-5810.10253868,8.099e-05,2]
[422773640,1779377432000,-151.7156864,8.137e-05,2]
[422773641,1779377432000,-151.0,8.137e-05,2]
[422773652,1779377432000,-627.73862527,8.218e-05,2]
[422773613,1779377432000,-300.0,7.539e-05,2]
[422773623,1779377432000,-14322.86324691,7.6e-05,2]
[422773611,1779377432000,-300.0,7.539e-05,2]
[422773594,1779377432000,-300.0,7.539e-05,2]
[422773606,1779377432000,-300.0,7.539e-05,2]
[422773565,1779377432000,-457.302,7.056e-05,2]
[422773580,1779377432000,-2015.63108152,7.192e-05,2]
[422773582,1779377432000,-164.617924,7.28e-05,2]
[422773574,1779377432000,-4152.703,7.056e-05,2]
[422773572,1779377432000,-389.995,7.056e-05,2]
[422773576,1779377432000,-478.23820252,7.128e-05,2]
[422773578,1779377432000,-774.526377,7.177e-05,2]
[422773584,1779377432000,-323.2724954,7.318e-05,2]
[422773609,1779377432000,-300.0,7.539e-05,2]
[422773586,1779377432000,-300.0,7.391e-05,2]
[422773588,1779377432000,-3964.71421114,7.392e-05,2]
[422773657,1779377432000,-627.73862527,8.218e-05,2]
[422773592,1779377432000,-4028.19093603,7.492e-05,2]
[422773598,1779377432000,-300.0,7.539e-05,2]
[422773600,1779377432000,-300.0,7.539e-05,2]
[422773602,1779377432000,-300.0,7.539e-05,2]
[422773596,1779377432000,-300.0,7.539e-05,2]
[422773604,1779377432000,-300.0,7.539e-05,2]
[422773590,1779377432000,-774.526377,7.48e-05,2]
[422773655,1779377432000,-627.73862527,8.218e-05,2]
[422773607,1779377432000,-300.0,7.539e-05,2]
[422773650,1779377432000,-627.73862527,8.218e-05,2]
[422773679,1779377432000,-300.55977937,8.219e-05,2]
[422773680,1779377432000,-500.0,8.219e-05,2]
[422773681,1779377432000,-818.48,8.219e-05,2]
[422773677,1779377432000,-997.0508,8.219e-05,2]
[422773682,1779377432000,-500.0,8.219e-05,2]
[422773684,1779377432000,-500.0,8.219e-05,2]
[422773683,1779377432000,-500.0,8.219e-05,2]
[422773685,1779377432000,-500.0,8.219e-05,2]
[422773678,1779377432000,-320.32811117,8.219e-05,2]
[422773686,1779377432000,-191.7218259,8.219e-05,2]
[422773687,1779377432000,-500.0,8.219e-05,2]
[422773692,1779377432000,-500.0,8.219e-05,2]
[422773693,1779377432000,-5017.33,8.219e-05,2]
[422773691,1779377432000,-500.0,8.219e-05,2]
[422773690,1779377432000,-505.77,8.219e-05,2]
[422773694,1779377432000,-500.0,8.219e-05,2]
[422773695,1779377432000,-500.0,8.219e-05,2]
[422773654,1779377432000,-627.73862527,8.218e-05,2]
[422773688,1779377432000,-500.0,8.219e-05,2]
[422773676,1779377432000,-650.56548437,8.218e-05,2]
[422773689,1779377432000,-794.08,8.219e-05,2]
[422773675,1779377432000,-650.56548437,8.218e-05,2]
[422773647,1779377432000,-627.73862527,8.218e-05,2]
[422773648,1779377432000,-627.73862527,8.218e-05,2]
[422773674,1779377432000,-650.56548437,8.218e-05,2]
[422773645,1779377432000,-627.73862527,8.218e-05,2]
[422773659,1779377432000,-627.73862527,8.218e-05,2]
[422773660,1779377432000,-627.73862527,8.218e-05,2]
[422773662,1779377432000,-627.73862527,8.218e-05,2]
[422773661,1779377432000,-627.73862527,8.218e-05,2]
[422773669,1779377432000,-650.56548437,8.218e-05,2]
[422773666,1779377432000,-627.73862527,8.218e-05,2]
[422773658,1779377432000,-627.73862527,8.218e-05,2]
[422773663,1779377432000,-627.73862527,8.218e-05,2]
[422773665,1779377432000,-627.73862527,8.218e-05,2]
[422773668,1779377432000,-650.56548437,8.218e-05,2]
[422773664,1779377432000,-627.73862527,8.218e-05,2]
[422773671,1779377432000,-650.56548437,8.218e-05,2]
[422773672,1779377432000,-650.56548437,8.218e-05,2]
[422773673,1779377432000,-650.56548437,8.218e-05,2]
[422773667,1779377432000,-650.56548437,8.218e-05,2]
[422773670,1779377432000,-650.56548437,8.218e-05,2]
[422773740,1779377433000,-991.471538,8.219e-05,2]
[422773729,1779377433000,-991.471538,8.219e-05,2]
[422773741,1779377433000,-991.471538,8.219e-05,2]
[422773739,1779377433000,-991.471538,8.219e-05,2]
[422773736,1779377433000,-991.471538,8.219e-05,2]
[422773735,1779377433000,-991.471538,8.219e-05,2]
[422773737,1779377433000,-500.0,8.219e-05,2]
[422773732,1779377433000,-991.471538,8.219e-05,2]
[422773731,1779377433000,-991.471538,8.219e-05,2]
[422773734,1779377433000,-596.63,8.219e-05,2]
[422773743,1779377433000,-991.471538,8.219e-05,2]
[422773733,1779377433000,-991.471538,8.219e-05,2]
[422773738,1779377433000,-991.471538,8.219e-05,2]
[422773742,1779377433000,-991.471538,8.219e-05,2]
[422773750,1779377433000,-991.471538,8.219e-05,2]
[422773746,1779377433000,-991.471538,8.219e-05,2]
[422773745,1779377433000,-991.471538,8.219e-05,2]
[422773747,1779377433000,-991.471538,8.219e-05,2]
[422773749,1779377433000,-991.471538,8.219e-05,2]
[422773748,1779377433000,-500.0,8.219e-05,2]
[422773751,1779377433000,-991.471538,8.219e-05,2]
[422773752,1779377433000,-991.471538,8.219e-05,2]
[422773753,1779377433000,-991.471538,8.219e-05,2]
[422773755,1779377433000,-991.471538,8.219e-05,2]
[422773756,1779377433000,-991.471538,8.219e-05,2]
[422773754,1779377433000,-991.471538,8.219e-05,2]
[422773730,1779377433000,-991.471538,8.219e-05,2]
[422773757,1779377433000,-991.471538,8.219e-05,2]
[422773744,1779377433000,-991.471538,8.219e-05,2]
[422773727,1779377433000,-991.471538,8.219e-05,2]
[422773708,1779377433000,-500.0,8.219e-05,2]
[422773723,1779377433000,-991.471538,8.219e-05,2]
[422773758,1779377433000,-991.471538,8.219e-05,2]
[422773697,1779377433000,-500.0,8.219e-05,2]
[422773696,1779377433000,-1007.87,8.219e-05,2]
[422773698,1779377433000,-500.0,8.219e-05,2]
[422773699,1779377433000,-500.0,8.219e-05,2]
[422773701,1779377433000,-500.0,8.219e-05,2]
[422773700,1779377433000,-500.0,8.219e-05,2]
[422773707,1779377433000,-500.0,8.219e-05,2]
[422773705,1779377433000,-500.0,8.219e-05,2]
[422773703,1779377433000,-788.19,8.219e-05,2]
[422773704,1779377433000,-500.0,8.219e-05,2]
[422773702,1779377433000,-584.06704225,8.219e-05,2]
[422773706,1779377433000,-500.0,8.219e-05,2]
[422773709,1779377433000,-762.79,8.219e-05,2]
[422773728,1779377433000,-991.471538,8.219e-05,2]
[422773710,1779377433000,-991.471538,8.219e-05,2]
[422773712,1779377433000,-991.471538,8.219e-05,2]
[422773714,1779377433000,-991.471538,8.219e-05,2]
[422773713,1779377433000,-991.471538,8.219e-05,2]
[422773715,1779377433000,-991.471538,8.219e-05,2]
[422773717,1779377433000,-991.471538,8.219e-05,2]
[422773716,1779377433000,-991.471538,8.219e-05,2]
[422773720,1779377433000,-991.471538,8.219e-05,2]
[422773718,1779377433000,-991.471538,8.219e-05,2]
[422773722,1779377433000,-991.471538,8.219e-05,2]
[422773719,1779377433000,-991.471538,8.219e-05,2]
[422773721,1779377433000,-991.471538,8.219e-05,2]
[422773724,1779377433000,-991.471538,8.219e-05,2]
[422773726,1779377433000,-991.471538,8.219e-05,2]
[422773725,1779377433000,-991.471538,8.219e-05,2]
[422773711,1779377433000,-991.471538,8.219e-05,2]
[422773763,1779377433000,-991.471538,8.219e-05,2]
[422773772,1779377433000,-1043.65425,8.219e-05,2]
[422773759,1779377433000,-991.471538,8.219e-05,2]
[422773796,1779377433000,-1043.65425,8.219e-05,2]
[422773797,1779377433000,-991.471538,8.219e-05,2]
[422773799,1779377433000,-991.471538,8.219e-05,2]
[422773798,1779377433000,-1043.65425,8.219e-05,2]
[422773800,1779377433000,-1043.65425,8.219e-05,2]
[422773801,1779377433000,-991.471538,8.219e-05,2]
[422773803,1779377433000,-991.471538,8.219e-05,2]
[422773805,1779377433000,-991.471538,8.219e-05,2]
[422773802,1779377433000,-1043.65425,8.219e-05,2]
[422773808,1779377433000,-1043.65425,8.219e-05,2]
[422773806,1779377433000,-1043.65425,8.219e-05,2]
[422773809,1779377433000,-991.471538,8.219e-05,2]
[422773804,1779377433000,-1043.65425,8.219e-05,2]
[422773807,1779377433000,-991.471538,8.219e-05,2]
[422773810,1779377433000,-1043.65425,8.219e-05,2]
[422773812,1779377433000,-1043.65425,8.219e-05,2]
[422773813,1779377433000,-774.526377,8.386e-05,2]
[422773816,1779377433000,-500.0,8.49e-05,2]
[422773814,1779377433000,-25702.00009263,8.393e-05,2]
[422773815,1779377433000,-5913.79734076,8.486e-05,2]
[422773818,1779377433000,-500.0,8.493e-05,2]
[422773817,1779377433000,-674.2742,8.493e-05,2]
[422773819,1779377433000,-818.48,8.493e-05,2]
[422773820,1779377433000,-500.0,8.493e-05,2]
[422773821,1779377433000,-500.0,8.493e-05,2]
[422773824,1779377433000,-516.51641086,8.493e-05,2]
[422773823,1779377433000,-500.0,8.493e-05,2]
[422773822,1779377433000,-500.0,8.493e-05,2]
[422773762,1779377433000,-1043.65425,8.219e-05,2]
[422773795,1779377433000,-991.471538,8.219e-05,2]
[422773794,1779377433000,-1043.65425,8.219e-05,2]
[422773811,1779377433000,-991.471538,8.219e-05,2]
[422773793,1779377433000,-991.471538,8.219e-05,2]
[422773761,1779377433000,-991.471538,8.219e-05,2]
[422773792,1779377433000,-500.0,8.219e-05,2]
[422773760,1779377433000,-991.471538,8.219e-05,2]
[422773765,1779377433000,-991.471538,8.219e-05,2]
[422773764,1779377433000,-1043.65425,8.219e-05,2]
[422773767,1779377433000,-991.471538,8.219e-05,2]
[422773766,1779377433000,-1043.65425,8.219e-05,2]
[422773769,1779377433000,-991.471538,8.219e-05,2]
[422773771,1779377433000,-991.471538,8.219e-05,2]
[422773777,1779377433000,-991.471538,8.219e-05,2]
[422773775,1779377433000,-991.471538,8.219e-05,2]
[422773770,1779377433000,-1043.65425,8.219e-05,2]
[422773776,1779377433000,-1043.65425,8.219e-05,2]
[422773774,1779377433000,-1043.65425,8.219e-05,2]
[422773768,1779377433000,-1043.65425,8.219e-05,2]
[422773787,1779377433000,-991.471538,8.219e-05,2]
[422773773,1779377433000,-991.471538,8.219e-05,2]
[422773788,1779377433000,-991.471538,8.219e-05,2]
[422773789,1779377433000,-991.471538,8.219e-05,2]
[422773790,1779377433000,-500.0,8.219e-05,2]
[422773786,1779377433000,-991.471538,8.219e-05,2]
[422773785,1779377433000,-1043.65425,8.219e-05,2]
[422773784,1779377433000,-1043.65425,8.219e-05,2]
[422773783,1779377433000,-1043.65425,8.219e-05,2]
[422773782,1779377433000,-1043.65425,8.219e-05,2]
[422773779,1779377433000,-991.471538,8.219e-05,2]
[422773780,1779377433000,-1043.65425,8.219e-05,2]
[422773781,1779377433000,-1043.65425,8.219e-05,2]
[422773778,1779377433000,-1043.65425,8.219e-05,2]
[422773791,1779377433000,-991.471538,8.219e-05,2]
[422773853,1779377434000,-174.8421,8.753e-05,2]
[422773849,1779377434000,-720.0,8.526e-05,2]
[422773846,1779377434000,-500.0,8.493e-05,2]
[422773855,1779377434000,-500.0,8.767e-05,2]
[422773843,1779377434000,-500.0,8.493e-05,2]
[422773835,1779377434000,-500.0,8.493e-05,2]
[422773852,1779377434000,-161.7158655,8.697e-05,2]
[422773850,1779377434000,-3644.3954299,8.612e-05,2]
[422773857,1779377434000,-500.0,8.767e-05,2]
[422773854,1779377434000,-997.0508,8.767e-05,2]
[422773851,1779377434000,-774.526377,8.688e-05,2]
[422773848,1779377434000,-161.0,8.5e-05,2]
[422773858,1779377434000,-613.062,8.767e-05,2]
[422773856,1779377434000,-818.48,8.767e-05,2]
[422773840,1779377434000,-500.0,8.493e-05,2]
[422773847,1779377434000,-500.0,8.493e-05,2]
[422773837,1779377434000,-500.0,8.493e-05,2]
[422773827,1779377434000,-500.0,8.493e-05,2]
[422773833,1779377434000,-500.0,8.493e-05,2]
[422773860,1779377434000,-500.0,8.767e-05,2]
[422773826,1779377434000,-505.77,8.493e-05,2]
[422773825,1779377434000,-794.08,8.493e-05,2]
[422773828,1779377434000,-500.0,8.493e-05,2]
[422773830,1779377434000,-488.17626179,8.493e-05,2]
[422773829,1779377434000,-5017.33,8.493e-05,2]
[422773836,1779377434000,-500.0,8.493e-05,2]
[422773832,1779377434000,-1007.87,8.493e-05,2]
[422773839,1779377434000,-500.0,8.493e-05,2]
[422773845,1779377434000,-596.63,8.493e-05,2]
[422773834,1779377434000,-500.0,8.493e-05,2]
[422773841,1779377434000,-500.0,8.493e-05,2]
[422773831,1779377434000,-340.38319536,8.493e-05,2]
[422773842,1779377434000,-500.0,8.493e-05,2]
[422773844,1779377434000,-762.79,8.493e-05,2]
[422773838,1779377434000,-788.19,8.493e-05,2]
[422773859,1779377434000,-150.307,8.767e-05,2]
[422773894,1779377434000,-2203.0,8.996e-05,2]
[422773867,1779377434000,-5017.33,8.767e-05,2]
[422773884,1779377434000,-1716.1399811,8.813e-05,2]
[422773883,1779377434000,-500.0,8.767e-05,2]
[422773885,1779377434000,-805.54686156,8.815e-05,2]
[422773886,1779377434000,-291.56920542,8.818e-05,2]
[422773887,1779377434000,-7048.56717508,8.874e-05,2]
[422773889,1779377434000,-456.5722719,8.951e-05,2]
[422773888,1779377434000,-35126.33914224,8.93e-05,2]
[422773892,1779377434000,-647.0,8.996e-05,2]
[422773893,1779377434000,-246.208,8.996e-05,2]
[422773890,1779377434000,-294.8809726,8.951e-05,2]
[422773891,1779377434000,-289.41578063,8.982e-05,2]
[422773896,1779377434000,-742.0,8.996e-05,2]
[422773897,1779377434000,-185.0,8.996e-05,2]
[422773895,1779377434000,-443.0,8.996e-05,2]
[422773898,1779377434000,-16440.91290742,9e-05,7]
[422773881,1779377434000,-596.63,8.767e-05,2]
[422773862,1779377434000,-500.0,8.767e-05,2]
[422773882,1779377434000,-500.0,8.767e-05,2]
[422773876,1779377434000,-500.0,8.767e-05,2]
[422773863,1779377434000,-794.08,8.767e-05,2]
[422773865,1779377434000,-500.0,8.767e-05,2]
[422773861,1779377434000,-500.0,8.767e-05,2]
[422773868,1779377434000,-1007.87,8.767e-05,2]
[422773864,1779377434000,-505.77,8.767e-05,2]
[422773866,1779377434000,-500.0,8.767e-05,2]
[422773879,1779377434000,-500.0,8.767e-05,2]
[422773869,1779377434000,-500.0,8.767e-05,2]
[422773870,1779377434000,-500.0,8.767e-05,2]
[422773872,1779377434000,-570.5115516,8.767e-05,2]
[422773874,1779377434000,-788.19,8.767e-05,2]
[422773873,1779377434000,-500.0,8.767e-05,2]
[422773875,1779377434000,-500.0,8.767e-05,2]
[422773877,1779377434000,-500.0,8.767e-05,2]
[422773878,1779377434000,-500.0,8.767e-05,2]
[422773880,1779377434000,-762.79,8.767e-05,2]
[422773871,1779377434000,-500.0,8.767e-05,2]
[422773927,1779377438000,-11547.25980262,9e-05,7]
[422773926,1779377438000,-1144.09332073,8.813e-05,2]
[422773948,1779377441000,-4074.08146771,9e-05,7]
[422773949,1779377441000,-1556.38474934,9e-05,7]
[422773947,1779377441000,-1042.37256033,9e-05,7]
[422773969,1779377447000,-1155.81912994,8.91e-05,2]
[422773968,1779377447000,-3844.18087006,8.91e-05,2]
[422773970,1779377447000,-17821.82581946,9e-05,7]
[422774002,1779378632000,-391.67623985,7.248e-05,2]
[422774003,1779378632000,-341.12675166,7.248e-05,2]
[422774000,1779378632000,-485.90161484,7.212e-05,2]
[422774001,1779378632000,-34.67851995,7.248e-05,2]
[422773997,1779378632000,-5000.0,7.104e-05,2]
[422774129,1779378638000,-244.19329009,8.13e-05,2]
[422774135,1779378638000,-163.90433,8.188e-05,2]
[422774133,1779378638000,-2219.74912126,8.179e-05,2]
[422774132,1779378638000,-2219.74912126,8.179e-05,2]
[422774116,1779378638000,-1095.91236316,8.079e-05,2]
[422774118,1779378638000,-1095.91236316,8.079e-05,2]
[422774112,1779378638000,-778.84689247,7.248e-05,2]
[422774114,1779378638000,-300.0,8.078e-05,2]
[422774141,1779378638000,-500.0,8.218e-05,2]
[422774120,1779378638000,-81.77592261,8.13e-05,2]
[422774139,1779378638000,-500.0,8.218e-05,2]
[422774099,1779378638000,-1321.85772387,7.248e-05,2]
[422774143,1779378638000,-500.0,8.218e-05,2]
[422774137,1779378638000,-4164.35472598,8.2e-05,30]
[422774168,1779378638000,-500.0,8.218e-05,2]
[422774166,1779378638000,-500.0,8.218e-05,2]
[422774155,1779378638000,-500.0,8.218e-05,2]
[422774152,1779378638000,-500.0,8.218e-05,2]
[422774161,1779378638000,-500.0,8.218e-05,2]
[422774149,1779378638000,-500.0,8.218e-05,2]
[422774158,1779378638000,-500.0,8.218e-05,2]
[422774147,1779378638000,-500.0,8.218e-05,2]
[422774145,1779378638000,-500.0,8.218e-05,2]
[422774164,1779378638000,-500.0,8.218e-05,2]
[422774253,1779378639000,-500.67133867,8.219e-05,2]
[422774257,1779378639000,-501.07822343,8.219e-05,2]
[422774269,1779378639000,-500.0,8.219e-05,2]
[422774255,1779378639000,-500.60012948,8.219e-05,2]
[422774263,1779378639000,-522.87905788,8.219e-05,2]
[422774241,1779378639000,-501.37190631,8.219e-05,2]
[422774249,1779378639000,-500.0,8.219e-05,2]
[422774234,1779378639000,-500.29407514,8.219e-05,2]
[422774243,1779378639000,-500.0,8.219e-05,2]
[422774232,1779378639000,-500.53561798,8.219e-05,2]
[422774265,1779378639000,-500.0,8.219e-05,2]
[422774240,1779378639000,-588.41988117,8.219e-05,2]
[422774251,1779378639000,-500.41115937,8.219e-05,2]
[422774267,1779378639000,-500.45625293,8.219e-05,2]
[422774287,1779378639000,-611.73042425,8.219e-05,2]
[422774273,1779378639000,-552.56779097,8.219e-05,2]
[422774271,1779378639000,-306.40538102,8.219e-05,2]
[422774275,1779378639000,-500.43808595,8.219e-05,2]
[422774281,1779378639000,-564.71693103,8.219e-05,2]
[422774279,1779378639000,-500.6296732,8.219e-05,2]
[422774277,1779378639000,-501.64267061,8.219e-05,2]
[422774283,1779378639000,-500.0,8.219e-05,2]
[422774289,1779378639000,-500.0,8.219e-05,2]
[422774296,1779378639000,-500.0,8.219e-05,2]
[422774285,1779378639000,-500.0,8.219e-05,2]
[422774290,1779378639000,-447.84637481,8.219e-05,2]
[422774293,1779378639000,-500.0,8.219e-05,2]
[422774236,1779378639000,-500.33453548,8.219e-05,2]
[422774260,1779378639000,-585.21612089,8.219e-05,2]
[422774238,1779378639000,-500.0,8.219e-05,2]
[422774209,1779378639000,-500.27396412,8.219e-05,2]
[422774228,1779378639000,-500.0,8.219e-05,2]
[422774170,1779378639000,-500.0,8.218e-05,2]
[422774174,1779378639000,-500.0,8.218e-05,2]
[422774176,1779378639000,-500.0,8.218e-05,2]
[422774178,1779378639000,-500.0,8.218e-05,2]
[422774180,1779378639000,-500.0,8.218e-05,2]
[422774192,1779378639000,-500.0,8.218e-05,2]
[422774194,1779378639000,-500.0,8.218e-05,2]
[422774184,1779378639000,-500.0,8.218e-05,2]
[422774182,1779378639000,-500.0,8.218e-05,2]
[422774188,1779378639000,-500.0,8.218e-05,2]
[422774172,1779378639000,-500.0,8.218e-05,2]
[422774186,1779378639000,-603.69859483,8.218e-05,2]
[422774190,1779378639000,-500.0,8.218e-05,2]
[422774196,1779378639000,-500.0,8.218e-05,2]
[422774294,1779378639000,-500.27821736,8.219e-05,2]
[422774211,1779378639000,-584.41363856,8.219e-05,2]
[422774213,1779378639000,-621.59260306,8.219e-05,2]
[422774198,1779378639000,-300.0,8.218e-05,2]
[422774215,1779378639000,-500.0,8.219e-05,2]
[422774200,1779378639000,-1106.3334,8.219e-05,2]
[422774217,1779378639000,-501.22802295,8.219e-05,2]
[422774202,1779378639000,-1002.55947041,8.219e-05,2]
[422774221,1779378639000,-520.88,8.219e-05,2]
[422774207,1779378639000,-500.56799825,8.219e-05,2]
[422774204,1779378639000,-501.3010283,8.219e-05,2]
[422774219,1779378639000,-500.0,8.219e-05,2]